Cogmind - Beta 12 @@@ ROGUE MODE // 2024.01.31 @ 17:41:03 Player: Jiyva Result: Destroyed by Y-45 Defender with Heavy Assault Rifle Performance ------------- Evolutions (1) 500 Regions Visited (3) 600 Robots Destroyed (51) 255 Value Destroyed (908) 908 Prototype IDs (6) 120 Alien Tech Used (0) 0 Bonus (22) 22 TOTAL SCORE: 2405 Bonus ------- High Alert Combat Kills 22 Cogmind --------- Core Integrity 0/400 Matter 300/300 Energy 45/100 System Corruption 6% Temperature Cool (18) Movement Core (50) Location -9/Mines Parts ------- > --- POWER (1) -------- (None) > --- PROPULSION (2) --- (None) > --- UTILITY (2) ------ (None) > --- WEAPON (4) ------- Autogun > --- INVENTORY (5) ---- Improved Ion Engine Titanium Leg Wheel Heat Sink Hardened Light Armor Plating Peak State ------------ > --- POWER ------------ Ion Engine > --- PROPULSION ------- Titanium Leg Titanium Leg > --- UTILITY ---------- Improved Heat Sink Small Storage Unit > --- WEAPON ----------- Improved EM Shotgun Improved EM Shotgun Particle Gun EMP Blaster > --- INVENTORY -------- Ion Engine Armored Wheel Heat Sink Hardened Light Armor Plating Heavy EM Pulse Gun Particle Gun Particle Gun [Rating: 22] Favorites ----------- Power Ion Engine Engine Ion Engine Propulsion Aluminum Leg Leg Aluminum Leg Wheel Armored Wheel Utility Small Storage Unit Device Heat Sink Storage Small Storage Unit Protection Light Armor Plating Weapon Heavy EM Pulse Gun Energy Gun Heavy EM Pulse Gun Ballistic Gun Assault Rifle Launcher EMP Blaster Build | -11 -10 -9 -9 ------- Run | Jun Mat Mat Min Slots Evolved 2 | . . 2 . Power . | . . . . Propulsion . | . . . . Utility . | . . . . Weapon 2 | . . 2 . Parts Attached 49 | 7 14 16 12 Power 5 | 1 2 1 1 Engine 5 | 1 2 1 1 Core . | . . . . Reactor . | . . . . Propulsion 11 | 2 4 2 3 Treads . | . . . . Leg 7 | 2 2 2 1 Wheel 4 | . 2 . 2 Hover . | . . . . Flight . | . . . . Utility 7 | 1 2 3 1 Device 5 | . 1 3 1 Storage 1 | 1 . . . Processor . | . . . . Hackware . | . . . . Protection 1 | . 1 . . Artifact . | . . . . Weapon 26 | 3 6 10 7 Energy Gun 22 | 1 6 9 6 Energy Cannon . | . . . . Ballistic Gun 3 | 2 . . 1 Ballistic Cannon . | . . . . Launcher 1 | . . 1 . Special Weapon . | . . . . Impact Weapon . | . . . . Slashing Weapon . | . . . . Piercing Weapon . | . . . . Special Melee Weapon . | . . . . Unidentified Prototypes 1 | . . 1 . Parts Lost 12 | . 1 1 10 Power 2 | . . 1 1 Propulsion 2 | . . . 2 Utility . | . . . . Weapon 8 | . 1 . 7 Highest Loss Streak 10 | . 1 1 10 To Critical Strikes . | . . . . Average Slot Usage (%) 95 | . 97 100 56 Engine 12 | . 14 11 4 Leg 18 | . 27 7 11 Wheel 6 | . . 14 2 Device 9 | . 7 11 12 Storage 12 | . 14 11 5 Protection 2 | . 3 . . Energy Gun 27 | . 21 38 13 Ballistic Gun 3 | . 6 . 2 Launcher 2 | . . 5 4 Naked Turns . | . . . . Heaviest Build 24 | 12 17 24 24 Greatest Support 34 | 20 24 34 34 Greatest Overweight (x) 1 | . 1 1 . Average Overweight (x) . | . . . . Largest Inventory Capacity 8 | 8 8 8 8 Average Capacity 7 | 6 8 8 6 Most Carried 8 | 2 7 8 8 Average Carried 5 | 1 5 6 5 Final Capacity 8 | 8 8 8 5 Final Carried 8 | 2 7 8 5 Class Distribution -------------------- 67% | Mutant 27% | Gunner 5% | Scavenger-Mutant Dominant Class ---------------- Mutant | -10/Materials Gunner | -9/Materials Mutant | -9/Mines Resources | -11 -10 -9 -9 ----------- Run | Jun Mat Mat Min Matter Collected 741 | 216 238 199 88 Remotely . | . . . . Salvage Created 1732 | . 606 991 135 Parts 120 | . 52 67 1 Haulers Intercepted 7 | . 1 6 . Recyclers Shooed 1 | . 1 . . Parts Field Recycled . | . . . . Retrieved Matter . | . . . . Parts Self-Destructed . | . . . . Prevented . | . . . . Kills | -11 -10 -9 -9 ------- Run | Jun Mat Mat Min Combat Hostiles Destroyed 36 | . 14 15 7 Guns 32 | . 13 12 7 AOE 3 | . 1 2 . Classes Destroyed 10 | . 5 4 1 Worker 2 | . . 1 1 Tunneler 1 | . . 1 . Hauler 7 | . 1 6 . Recycler 2 | . . 2 . Operator 3 | . 2 1 . Watcher 7 | . 3 4 . Swarmer 15 | . 6 9 . Grunt 13 | . 8 5 . Sentry 1 | . . 1 . Assembled 7 | . . . 7 Best Kill Streak 10 | . 4 10 8 Combat Bots Only 7 | . 3 5 7 Max Kills in Single Turn 2 | . 2 2 2 Gunslinging 1 | . . 1 1 Exploded 1 | . 1 1 . Melee . | . . . . Uniques/NPCs Destroyed . | . . . . Combat | -11 -10 -9 -9 -------- Run | Jun Mat Mat Min Damage Taken 2010 | . 481 402 1127 Core 542 | . 128 87 327 Absorbed by Shields . | . . . . Core Remaining (%) 74 | 100 48 . . Volleys Fired 109 | . 43 49 17 Largest 3 | . 2 3 3 Hottest 195 | . 95 175 195 Shots Fired 235 | . 85 120 30 Gun 234 | . 85 119 30 Cannon . | . . . . Launcher 1 | . . 1 . Special . | . . . . Kinetic 23 | . 23 . . Thermal 83 | . 25 38 20 Explosive . | . . . . Electromagnetic 129 | . 37 82 10 Robot Hit Streak 15 | . 6 15 13 Robot Miss Streak 6 | . 4 6 2 Penetration Max . | . . . . Secondary Targets 5 | . 1 2 2 Max Gunslinging Chain 1 | . 1 1 1 Shots Hit Robots 151 | . 54 74 23 Core Hits 81 | . 29 33 19 Critical Kills . | . . . . Critical Parts Destroyed . | . . . . Critical Strikes 6 | . 2 3 1 Burn 3 | . 1 1 1 Corrupt 3 | . 1 2 . Melee Attacks . | . . . . Impact . | . . . . Slashing . | . . . . Piercing . | . . . . Sneak Attacks . | . . . . Combat Hostiles . | . . . . Follow-up Attacks . | . . . . Damage Inflicted 2833 | . 926 1519 388 Guns 2484 | . 837 1259 388 Cannons . | . . . . Explosions 349 | . 89 260 . Melee . | . . . . Ramming . | . . . . Kinetic 229 | . 229 . . Thermal 1039 | . 314 488 237 Explosive . | . . . . Electromagnetic 1565 | . 383 1031 151 Impact . | . . . . Slashing . | . . . . Piercing . | . . . . Highest Corruption 6 | . 1 . 6 Average Corruption 1 | . 1 . 5 Corruption Purged . | . . . . Corruption Blocked . | . . . . Effects 12 | . 6 . 6 Matter Fused 3 | . 3 . . Heat Flow Errors 1 | . . . 1 Energy Discharges 1 | . . . 1 Parts Rejected 2 | . . . 2 Data Loss (minor) 3 | . 2 . 1 Weapon Failures 2 | . 1 . 1 Overload Shots . | . . . . Overflow Damage 43 | . . 43 . Projectiles . | . . . . Explosions 43 | . . 43 . Melee . | . . . . Knockbacks . | . . . . Impact . | . . . . Kinetic . | . . . . Secondary . | . . . . Self-Inflicted Damage 131 | . 27 104 . Shots 4 | . 1 3 . Rammed . | . . . . Targets Rammed . | . . . . Kicked . | . . . . Crushed . | . . . . Highest Temperature 258 | . 225 258 210 Average Temperature 71 | . 53 85 75 Received Heat Transfer 347 | . 150 30 167 Effects 3 | . . 3 . Interference 3 | . . 3 . Siege Activations . | . . . . Robots Corrupted 3 | . . 3 . Combat Hostiles 1 | . . 1 . Parts Fried 10 | . 2 8 . Impact Corruptions . | . . . . Robots Melted . | . . . . Combat Hostiles . | . . . . Parts Melted 2 | . 1 1 . Heat Transferred 2435 | . 890 916 629 Parts Sabotaged . | . . . . Parts Stolen . | . . . . Parts Stripped . | . . . . Power Chain Reactions 6 | . 3 3 . Missiles Intercepted . | . . . . Alert | -11 -10 -9 -9 ------- Run | Jun Mat Mat Min Peak Influence 479 | . 276 479 142 Initial 127 | . . 54 127 Average 165 | . 117 263 100 Maximum Alert Level 2 | . 1 2 . Low Security (%) 63 | 100 77 32 100 Level 1 33 | . 22 59 . Level 2 2 | . . 7 . Level 3 . | . . . . Level 4 . | . . . . Level 5 . | . . . . High Security . | . . . . Max Security . | . . . . Squads Dispatched 5 | . 3 2 . Investigation 2 | . 1 1 . Extermination . | . . . . Reinforcement 3 | . 2 1 . Assault . | . . . . Garrison . | . . . . Intercept . | . . . . Searches Triggered . | . . . . Construction Impeded . | . . . . Haulers Reinforced . | . . . . Active Scanning Responses . | . . . . Cargo Convoy Interrupts . | . . . . Stealth | -11 -10 -9 -9 --------- Run | Jun Mat Mat Min Distress Signals 2 | . 1 1 . Communications Jammed . | . . . . Distress Signals . | . . . . Times Spotted 65 | . 22 28 15 Peak Tracking Total 7 | . 4 5 7 Tactical Retreats 6 | . 1 4 1 Traps | -11 -10 -9 -9 ------- Run | Jun Mat Mat Min Traps Triggered 2 | . 2 . . Indirectly . | . . . . Trap Hack Attempts . | . . . . Triggered . | . . . . Disarmed . | . . . . Reprogrammed . | . . . . Reused . | . . . . Traps Extracted . | . . . . Installed . | . . . . Triggered . | . . . . Machines | -11 -10 -9 -9 ---------- Run | Jun Mat Mat Min Machines Disabled 5 | . 1 3 1 Max in Single Turn 1 | . 1 1 1 Machines Repaired . | . . . . Machines Sabotaged . | . . . . Overloaded Fab Kills . | . . . . Hacking | -11 -10 -9 -9 --------- Run | Jun Mat Mat Min Machines Accessed 11 | . 5 6 . Terminals 8 | . 4 4 . Fabricators . | . . . . Repair Stations . | . . . . Recycling Units 2 | . 1 1 . Scanalyzers 1 | . . 1 . Garrison Access . | . . . . Total Hacks 25 | . 10 15 . Successful 14 | . 5 9 . Failed 11 | . 5 6 . Catastrophic 3 | . 1 2 . Database Lockouts . | . . . . Manual 4 | . . 4 . Terminals 19 | . 9 10 . Fabricators . | . . . . Repair Stations . | . . . . Recycling Units 2 | . 1 1 . Scanalyzers 4 | . . 4 . Garrison Access . | . . . . Terminal Hacks 9 | . 4 5 . Record 1 | . . 1 . Prototype ID Bank 2 | . . 2 . Alert Level 3 | . 2 1 . Unreport Threat 1 | . . 1 . Security Status 1 | . 1 . . Zone Layout 1 | . 1 . . Fabricator Hacks . | . . . . Repair Station Hacks . | . . . . Recycling Unit Hacks 2 | . 1 1 . Report Inventory 2 | . 1 1 . Scanalyzer 3 | . . 3 . Insert Component 2 | . . 2 . Analyze 1 | . . 1 . Garrison Access Hacks . | . . . . Unauthorized Hacks . | . . . . Terminals . | . . . . Fabricators . | . . . . Repair Stations . | . . . . Recycling Units . | . . . . Scanalyzers . | . . . . Garrison Access . | . . . . Data Cores Recovered 2 | . 1 1 . Used . | . . . . Hacking Detections 7 | . 3 4 . Full Trace Events 2 | . 1 1 . Feedback Events . | . . . . Feedback Blocked . | . . . . Robot Schematics Acquired . | . . . . Robots Built . | . . . . Authchips . | . . . . Time . | . . . . Total Robot Build Rating . | . . . . Part Schematics Acquired 1 | . . 1 . Parts Built . | . . . . Authchips . | . . . . Time . | . . . . Total Part Build Rating . | . . . . Parts Repaired . | . . . . Time . | . . . . Parts Recycled . | . . . . Recycled Matter . | . . . . Retrieved Matter . | . . . . Retrieved Components . | . . . . Parts Scanalyzed 1 | . . 1 . Part Schematics Acquired 1 | . . 1 . Parts Damaged . | . . . . Bothacking | -11 -10 -9 -9 ------------ Run | Jun Mat Mat Min Used RIF Installer . | . . . . Robots Hacked . | . . . . Non-combat . | . . . . Combat . | . . . . Robot Hacks Applied . | . . . . Relay Couplers Released . | . . . . Fabnet Peak Effective % . | . . . . Robots Rewired . | . . . . Allies Hacked . | . . . . Hacks Repelled . | . . . . Allies | -11 -10 -9 -9 -------- Run | Jun Mat Mat Min Total Allies . | . . . . Largest Group . | . . . . Highest-Rated Group . | . . . . Highest-Rated Ally . | . . . . Total Orders . | . . . . Ally Attacks . | . . . . Total Damage . | . . . . Kills . | . . . . Allies Corrupted . | . . . . Allies Melted . | . . . . Intel | -11 -10 -9 -9 ------- Run | Jun Mat Mat Min Robot Analysis Total . | . . . . Derelict Logs Recovered . | . . . . Drone Launches . | . . . . Drone Recoveries . | . . . . Exploration | -11 -10 -9 -9 ------------- Run | Jun Mat Mat Min Turns Passed 2241 | 66 1221 798 156 Spaces Moved 1413 | 51 779 472 111 Core 93 | 9 . . 84 Treads . | . . . . Legs 972 | 42 745 172 13 Wheels 348 | . 34 300 14 Hover . | . . . . Flight . | . . . . Fastest Speed 50 | 50 90 90 50 Average Speed 109 | 107 118 104 63 Slowest Speed 200 | 120 120 200 130 Overloaded Moves . | . . . . Propulsion Burnouts . | . . . . Robots Hopped . | . . . . Cave-ins Triggered . | . . . . Exploration Rate (%) 44 | 3 95 43 36 Regions Visited 3 Branch Regions 1 Pre-discovered Areas . | . . . . Known Exits Taken . | . . . . Unknown Exits Taken 3 | 1 1 1 . Scrap Searched 1 | . . . 1 Spaces Dug . | . . . . Terrain Destroyed 14 | . 8 6 . Melee . | . . . . Projectile . | . . . . AOE 14 | . 8 6 . Terrain Rammed . | . . . . Walls Destroyed . | . . . . Machines Disabled . | . . . . Actions | -11 -10 -9 -9 --------- Run | Jun Mat Mat Min Total 1891 | 58 989 674 170 Wait 264 | . 126 117 21 Move 1410 | 50 778 471 111 Hop . | . . . . Pick Up 25 | 1 14 9 1 Fast Attach 20 | 6 4 4 6 Attach 11 | . 1 4 6 Detach 6 | . . 3 3 Swap 18 | 1 9 8 . Drop 28 | . 14 9 5 Fire 109 | . 43 49 17 Melee . | . . . . Ram . | . . . . Kick . | . . . . Crush . | . . . . Escape Stasis . | . . . . Rewire . | . . . . Trap . | . . . . Miscellaneous . | . . . . Route ------- -11/Junkyard -10/Materials (discovered 4 exits: *Mat x3 / [*Min]) -9/Materials -9/Mines History --------- Turn | Location | Event 9 | -11/Junkyard | Discovered new exit (range 15) 67 | -11/Junkyard | Entered Materials 310 | -10/Materials | Build established: Mutant 336 | -10/Materials | Discovered new exit (range 10) 641 | -10/Materials | Discovered new exit (range 13) 935 | -10/Materials | Discovered new exit (range 15) 1166 | -10/Materials | Core integrity fell below 50% 1273 | -10/Materials | Discovered new exit (range 16) 1288 | -10/Materials | Entered another Materials area 1288 | -9/Materials | Evolved 2 slots: Weapon x2 2040 | -9/Materials | Discovered new exit (range 6) 2086 | -9/Materials | Entered Mines 2087 | -9/Mines | Assembled infested the area 2158 | -9/Mines | Core integrity fell below 50% 2180 | -9/Mines | Destroyed 7 combat bots 2194 | -9/Mines | Lost 10 parts (1p2n7w) 2240 | -9/Mines | Core integrity fell below 20% 2242 | -9/Mines | Destroyed by Y-45 Defender with Heavy Assault Rifle Last Messages --------------- 02192_ System corrupted: Energy discharge (-21). 02196_ Y-45 Defender suffers critical hit (Burn). 02204_ Searching scrap... 02204_ Found Spread Laser. 02204_ Found Autogun. 02204_ Found 30 Matter. 02205_ Acquired 10 matter. 02207_ Acquired Spread Laser. 02209_ System corrupted: Heat flow error (+252). 02210_ Acquired Autogun. 02211_ Acquired 13 matter. 02214_ Acquired Wheel. 02218_ Acquired 20 matter. 02219_ Acquired 7 matter. 02221_ Dropped Trap Scanner. 02221_ Acquired Wheel. 02236_ System corrupted: Spread Laser rejected. 02237_ Laser Drill disabled. 02238_ Dropped Wheel. 02239_ Dropped Imp. Heat Sink. Map ----- +----------------------------------------------------+ | ????????????# """ #???? # """ | | ????????????# """* #????? # """ | | ????????????# """%=#?????# % | | ????????????# =% #????#? | | ????????????# #????# # | | ????????????? ???????# | | ??????????????# #????????## #??? | | ??????????????# #???????## ##??? | | ?????# ???????# ######### #???? | | ?????# #####! ## ##### | | ?????# !%=*%| ### | | ??????# #### = <### # #?# ##### | | ???????????## #?# ### ##?# #???? | | ??????????## ##?# #?####??# #???? | | ??????????# ##??# #???????# #???? | | ??????????# ##???# #??####?# #???? | | ??????????## ##????# ??? #?# #???? | | ???????????# #?????###???# #?# ##??? | | ???????????# #########???# ### #??? | | ???????????# #??## ## #??? | | ???????????# !####### #### #??? | | ???????????# #?????# #??? | | ???????????# %#?????###### #??? | | ??????######d ####?##??### ##??? | | ??????# !!% ###" ?# %##???? | | ??????# % @ ##"" # %####?? | | ??????# Y% Y ##![ %%#?? | | ??????# " ##[! / ## #?? | | ??????# ###"" # #??#?? | | ?????## ###" ## $ ? | | ?????# [ ##?#### | | ?????# #?????# ##### | | ?????# #?????## #???? | | ?????# " #??????# ##???? | | ?????## #??????# ##????? | | ??????## # ######?????? #?????? | | ???????#####?????????? #?????? | | ?????????????????????? ##?????? | | ??????????????????????# ##??????? | | ??????????????????????## ##???????? | | ???????????????????????## ##????????? | | ?????????????????????????##??????????? | | ?????????????????????????????????????? | | | | | | | | | | | | | | | +----------------------------------------------------+ Best States ------------- Heat Dissipation 42 Energy Generation 12 Energy Capacity 265 Matter Stores 300 Matter Capacity 300 Sight Range 16 Terrain Scan Density 10 Armor Coverage 150 Evasion (%) 55 Item Schematics ----------------- Imp. EM Shotgun | -9/Materials | Scanalyzed Robot Schematics ------------------ None Fabricated ------------ Nothing Alien Tech Used ----------------- None Achievements -------------- None Challenges ------------ None Game ------ Seed DrainedAerolevModule Manual? 0 Play Time 01:11:57 Cumulative 137.5 hours Start 2024.01.31 @ 15:59:38 End 2024.01.31 @ 17:41:03 Sessions 5 Manual Loads 0 Difficulty Rogue Special Mode None Game No. 46 Rogue 46 Adventurer 0 Explorer 0 Win Type - Total 0 Types 0/0/0/0/0/0/0/0/0 Lore% 25 Gallery% 51 Achievement% 34 Wizard Run 0 Options --------- ASCII 1 Keyboard 1 Movement Vi Keybinds 1 Fullscreen 1 Font 18/Smallcaps Map View 76x50 Tactical HUD 1 Map Filters NONE Filters NONE Steam 1 RUN: 717bb680-0652-44d6-9dc4-9dba04749cb9